bitfinex/quotes_ETHUSD_20251214
["timestamp","ask_amount","ask_price","bid_price","bid_amount"]
[1765713108729,0.09628809,3077.0,3075.5,0.002]
[1765713109230,0.4618,3076.9,3075.5,0.002]
[1765713109940,0.6379,3075.6,3074.3,0.002]
[1765713110145,0.6379,3074.9,3074.3,0.002]
[1765713110569,1.0997,3074.9,3074.3,0.002]
[1765713112144,0.18,3075.6,3074.3,0.002]
[1765713112410,0.4618,3075.2,3074.3,0.002]
[1765713113572,0.4579,3074.9,3074.3,0.002]
[1765713114076,0.9197,3074.9,3074.3,0.002]
[1765713116696,0.4881,3075.3,3074.3,0.002]
[1765713117387,0.4635,3074.9,3074.3,0.002]
[1765713117886,0.9516,3074.9,3074.3,0.002]
[1765713119600,1.04788809,3074.9,3074.3,0.002]
[1765713119794,1.21094194,3074.9,3074.3,0.002]
[1765713120994,1.11465385,3074.9,3074.3,0.002]
[1765713121161,1.65665385,3074.9,3074.3,0.002]
[1765713121485,1.15530557,3074.9,3074.3,0.002]
[1765713121864,1.65665385,3074.9,3074.3,0.002]
[1765713122982,0.62655385,3074.9,3074.3,0.002]
[1765713123191,0.4881,3075.2,3074.3,0.002]
[1765713124690,0.6681,3075.6,3074.3,0.002]
[1765713124989,0.542,3075.5,3074.3,0.1803]
[1765713125190,0.4881,3076.2,3074.8,0.1803]
[1765713125392,0.09628809,3077.8,3075.4,0.1783]
[1765713125393,0.001,3075.5,3075.4,0.1783]
[1765713125888,0.001,3075.5,3075.4,30.762104]
[1765713126105,0.001,3075.5,3075.4,32.68887425]
[1765713126272,0.001,3075.5,3075.4,30.762104]
[1765713126469,0.001,3075.5,3075.4,31.34257929]
[1765713127782,0.001,3075.5,3075.4,12.80257929]
[1765713128290,0.001,3075.5,3075.4,31.34257929]
[1765713129163,0.001,3075.5,3075.4,1.34257929]
[1765713129492,0.001,3075.5,3075.4,31.34257929]
[1765713130689,0.001,3075.5,3075.4,11.08857929]
[1765713131307,0.001,3075.5,3075.4,31.34257929]
[1765713133182,0.001,3075.5,3074.8,0.1803]
[1765713133395,0.001,3075.5,3074.8,0.002]
[1765713134284,0.001,3075.5,3074.9,0.405504]
[1765713135302,0.001,3075.5,3074.8,0.002]
[1765713136092,0.4891,3075.5,3074.8,0.002]
[1765713137267,0.6608,3074.9,3074.8,0.002]
[1765713137771,0.1973,3075.2,3074.8,0.002]
[1765713138087,0.001,3075.5,3074.8,0.002]
[1765713138294,0.001,3075.5,3075.1,0.1783]
[1765713138805,0.4635,3075.2,3074.9,0.002]
[1765713139468,0.001,3075.5,3074.9,0.002]
[1765713139697,0.001,3075.5,3075.1,0.1783]
[1765713139996,0.001,3075.5,3075.2,0.405504]
[1765713140495,0.001,3075.5,3075.0,0.405504]
[1765713140879,0.001,3075.5,3074.9,0.002]
[1765713141677,0.001,3075.5,3075.4,0.1783]
[1765713141973,0.001,3075.5,3075.4,31.16427929]
[1765713142372,0.001,3075.5,3075.4,8.58827929]
[1765713142674,0.001,3075.5,3075.4,5.13627929]
[1765713142880,0.001,3075.5,3075.4,1.16427929]
[1765713143807,0.001,3075.5,3075.4,0.58047529]
[1765713144001,0.001,3075.5,3075.1,0.58047529]
[1765713144177,0.4891,3075.5,3074.9,0.002]
[1765713145076,0.4635,3075.0,3074.9,0.002]
[1765713145679,0.4637,3075.3,3074.9,0.002]
[1765713146072,0.001,3075.5,3074.9,0.002]
[1765713146892,0.001,3075.5,3075.4,0.1803]
[1765713147808,0.001,3075.5,3075.4,0.002]
[1765713149207,0.001,3075.5,3075.4,31.34457929]
[1765713150307,0.001,3075.5,3075.4,31.74874266]
[1765713150510,0.001,3075.5,3075.4,31.34457929]
[1765713150887,0.001,3075.5,3075.4,31.79048615]
[1765713151083,0.001,3075.5,3075.4,31.39874266]
[1765713152007,0.001,3075.5,3075.4,1.39874266]
[1765713152311,0.001,3075.5,3075.4,31.39874266]
[1765713152709,0.001,3076.8,3075.5,30.58047529]
[1765713153021,0.001,3076.8,3076.2,0.98597929]
[1765713153315,0.001,3076.8,3076.7,30.98597929]
[1765713153491,0.001,3076.8,3076.7,31.48643075]
[1765713154616,0.001,3077.6,3077.0,0.98597929]
[1765713154916,0.001,3077.6,3077.2,31.08226738]
[1765713155296,0.001,3077.6,3077.2,31.48643075]
[1765713156390,0.001,3077.6,3077.2,31.08226738]
[1765713157914,0.001,3077.6,3077.2,31.48643075]
[1765713161219,0.001,3077.6,3077.2,30.58047529]
[1765713161421,0.001,3077.6,3077.2,33.04724554]
[1765713161998,0.001,3077.6,3077.2,33.45274954]
[1765713162510,0.001,3077.6,3077.2,17.034]
[1765713162711,0.001,3077.6,3077.2,30.0]
[1765713162889,0.001,3077.6,3077.2,30.58047529]
[1765713163093,0.001,3077.6,3077.2,30.98597929]
[1765713164216,0.001,3077.6,3077.2,31.52497929]
[1765713167992,0.001,3077.6,3077.2,33.47897929]
[1765713170223,0.001,3077.6,3077.2,31.52497929]
[1765713174721,0.001,3078.4,3078.0,30.0]
[1765713174927,0.001,3078.4,3078.3,0.98597929]
[1765713175245,0.001,3078.4,3078.3,30.98597929]
[1765713175542,0.001,3078.4,3078.3,32.91274954]
[1765713176115,0.4937,3078.4,3078.3,32.91274954]
[1765713176316,0.9487,3078.4,3078.3,31.52497929]
[1765713176519,0.9487,3078.4,3078.3,10.48997929]
[1765713177322,0.001,3078.4,3078.3,10.48997929]
[1765713177556,0.001,3078.4,3078.3,31.52497929]
[1765713177758,0.001,3078.4,3078.3,33.45174954]
[1765713178048,0.001,3078.4,3078.3,31.52497929]
[1765713178451,0.001,3078.4,3078.3,1.52497929]
[1765713178622,0.001,3078.4,3078.3,31.52497929]
[1765713179428,0.001,3078.4,3078.3,1.52497929]
[1765713179630,0.001,3078.4,3078.3,31.52497929]
[1765713179857,0.001,3078.4,3078.3,33.52897929]
[1765713180361,0.001,3078.6,3078.5,42.93997929]
[1765713180543,0.001,3078.6,3078.5,32.93997929]
[1765713180958,0.001,3079.3,3079.2,0.405504]
[1765713181138,0.001,3079.3,3079.2,37.81490465]
[1765713181449,0.455,3081.0,3079.6,32.98997929]
[1765713181650,0.455,3080.7,3079.6,33.52797929]
[1765713181855,0.04054623,3082.9,3079.6,33.52797929]
[1765713182155,0.455,3081.0,3079.8,30.0]
[1765713182319,0.04054623,3082.9,3080.1,0.98597929]
[1765713182646,0.455,3081.4,3080.7,0.98597929]
[1765713182853,0.455,3081.4,3080.8,31.52397929]
[1765713183426,0.455,3081.4,3080.8,1.52397929]
[1765713183621,0.455,3081.4,3080.8,31.52397929]
[1765713184729,1.1481,3080.9,3080.8,20.67897929]
[1765713184951,1.1481,3080.9,3080.8,21.21697929]
[1765713184952,0.001,3080.9,3080.8,21.21697929]
[1765713185630,0.1994,3083.0,3080.9,0.98597929]
[1765713185835,0.455,3082.4,3081.3,0.98597929]
[1765713186047,0.455,3082.4,3081.9,0.405504]
[1765713186250,0.58749436,3082.5,3082.3,0.58047529]
[1765713186539,0.4927,3082.0,3080.8,30.0]
[1765713186744,0.13249436,3082.5,3082.4,0.405504]
[1765713187042,0.13249436,3082.5,3082.4,31.52397929]
[1765713187360,1.06229436,3082.5,3082.4,27.07997929]
[1765713187560,0.58949436,3082.5,3082.4,27.07997929]
[1765713187741,0.13249436,3082.5,3082.4,31.52397929]
[1765713188349,0.13249436,3082.5,3082.4,31.52457461]
[1765713188550,0.13249436,3082.5,3082.4,31.52397929]
[1765713188760,0.23991732,3085.1,3082.4,31.52397929]
[1765713188761,0.1994,3085.1,3083.5,0.405504]
[1765713188965,0.4728,3084.2,3083.9,0.98597929]
[1765713189261,0.1994,3085.1,3084.3,0.98597929]
[1765713189262,0.1883,3084.8,3084.3,0.98597929]
[1765713189563,0.1883,3084.8,3084.7,40.98597929]
[1765713189768,0.357,3084.4,3083.7,0.405504]
[1765713189976,0.357,3084.4,3084.0,30.405504]
[1765713190266,0.4728,3084.3,3084.2,40.98597929]
[1765713190467,0.4728,3084.3,3084.2,31.52297929]
[1765713190665,0.1883,3084.8,3084.4,0.98597929]
[1765713190842,0.1883,3084.8,3084.6,0.405504]
[1765713191038,0.1883,3084.8,3084.7,30.98597929]
[1765713191237,0.1994,3085.1,3084.8,0.98597929]
[1765713191442,0.6722,3085.1,3085.0,24.90397929]
[1765713191764,0.6722,3085.1,3085.0,4.09797929]
[1765713191964,1.1292,3085.1,3085.0,3.56097929]
[1765713192167,1.1292,3085.1,3085.0,1.52297929]
[1765713192369,1.1292,3085.1,3083.2,0.1]
[1765713192370,1.36212,3085.1,3083.2,0.1]
[1765713192540,0.2532,3084.6,3083.4,30.0]
[1765713192740,0.2532,3084.6,3083.7,0.405504]
[1765713192969,0.6611,3084.5,3084.3,0.405504]
[1765713193177,0.6611,3084.5,3084.4,30.0]
[1765713193479,0.9277,3084.4,3083.3,30.0]
[1765713193658,0.9277,3084.4,3084.0,30.0]
[1765713193984,0.4728,3084.3,3083.6,2.167]
[1765713194282,0.6453,3083.2,3083.1,5.24528809]
[1765713194484,0.6453,3083.2,3082.8,30.0]
[1765713194786,0.4728,3083.1,3082.9,0.537]
[1765713195383,0.457,3083.0,3082.9,0.58047529]
[1765713195540,0.457,3083.0,3082.5,0.09628809]
[1765713195739,0.4728,3082.9,3082.6,7.832]
[1765713195963,0.4728,3082.9,3082.8,30.58047529]
[1765713196171,0.4728,3082.9,3082.8,9.81447529]
[1765713196366,0.9298,3082.9,3082.6,0.537]
[1765713196538,0.9298,3082.9,3082.6,1.11747529]
[1765713196539,0.4728,3082.9,3082.6,1.11747529]
[1765713196738,0.1883,3084.0,3082.7,30.537]
[1765713196938,0.1883,3084.5,3084.1,10.98597929]
[1765713197168,0.6611,3084.5,3084.2,0.537]
[1765713197672,0.4728,3084.4,3083.4,0.09628809]
[1765713197871,0.4728,3084.4,3083.9,0.405504]
[1765713198047,0.4728,3084.4,3083.7,0.09628809]
[1765713198244,0.1883,3083.8,3083.7,1.03879209]
[1765713198550,0.1883,3083.8,3083.4,0.405504]
[1765713198757,0.4728,3083.7,3083.4,0.50179209]
[1765713199353,0.4728,3083.7,3082.4,28.444]
[1765713199548,0.4728,3083.7,3082.5,1.92677025]
[1765713199754,0.4728,3083.7,3082.4,0.537]
[1765713199755,0.1883,3082.5,3082.4,24.021]
[1765713200057,0.1883,3082.5,3082.4,17.90547529]
[1765713200264,0.1883,3082.7,3082.4,0.537]
[1765713200760,0.4728,3082.6,3082.5,30.58047529]
[1765713201106,0.4728,3082.6,3082.5,18.51997929]
[1765713201246,0.4728,3082.6,3082.5,0.98597929]
[1765713201676,0.4728,3082.6,3082.5,0.58047529]
[1765713201871,0.1883,3083.8,3082.7,30.405504]
[1765713201872,0.1883,3082.9,3082.7,30.405504]
[1765713202095,0.1883,3082.9,3082.8,0.405504]
[1765713202392,0.1883,3082.9,3082.8,30.98597929]
[1765713202393,0.6611,3082.9,3082.8,30.98597929]
[1765713202747,0.4728,3083.4,3083.1,12.141]
[1765713203058,0.4728,3083.4,3083.1,11.493]
[1765713203266,0.4728,3083.4,3083.1,0.405504]
[1765713203490,0.4728,3083.4,3082.5,0.09628809]
[1765713203656,0.1883,3082.8,3082.6,0.942504]
[1765713203856,0.1883,3082.8,3082.6,0.537]
[1765713204096,0.4728,3082.7,3082.6,0.537]
[1765713204266,0.1883,3082.8,3082.6,0.537]
[1765713204593,0.4728,3082.7,3082.0,30.0]
[1765713204749,0.4728,3082.7,3082.3,0.58047529]
[1765713204948,0.4728,3082.7,3082.3,0.405504]
[1765713205260,0.4728,3082.7,3082.3,30.0]
[1765713205587,0.4728,3082.7,3082.6,0.98597929]
[1765713205750,0.1883,3082.8,3082.7,34.79997929]
[1765713206097,0.1883,3082.8,3082.6,0.405504]
[1765713206384,0.4594,3082.6,3082.4,0.405504]
[1765713206891,0.2637,3082.5,3082.4,14.53297929]
[1765713207191,0.2637,3082.5,3082.4,9.25897929]
[1765713207351,0.7235,3082.5,3082.4,9.25897929]
[1765713207747,0.7235,3082.5,3082.2,0.536]
[1765713207953,0.4575,3082.3,3082.2,0.941504]
[1765713208195,0.4575,3082.3,3081.2,30.0]
[1765713208492,0.2656,3082.0,3081.7,10.09628809]
[1765713208691,0.2656,3082.0,3081.8,0.405504]
[1765713208989,0.2656,3082.0,3081.7,0.09628809]
[1765713209391,0.1833,3081.9,3081.7,0.09628809]
[1765713210088,0.4804,3082.7,3082.0,0.405504]
[1765713210272,0.4804,3082.7,3082.2,0.405504]
[1765713210470,0.4804,3082.7,3082.1,0.405504]
[1765713210877,0.4774,3082.2,3082.1,0.405504]
[1765713211491,0.9578,3082.2,3082.1,0.405504]
[1765713211685,0.9578,3082.2,3082.0,0.536]
[1765713211990,0.7219,3082.1,3082.0,0.536]
[1765713212286,0.7219,3082.1,3081.5,0.536]
[1765713212586,0.4751,3081.8,3081.5,0.536]
[1765713212752,0.4804,3082.5,3081.7,0.58047529]
[1765713212958,0.4804,3082.5,3082.0,0.98597929]
[1765713213283,0.4804,3082.5,3082.0,0.405504]
[1765713213454,0.4774,3082.1,3081.9,0.98597929]
[1765713213650,0.6607,3081.7,3081.0,30.0]
[1765713213886,0.2415,3081.6,3081.0,10.34677025]
[1765713214054,0.7219,3081.6,3081.1,30.0]
[1765713214254,0.7219,3081.6,3081.2,0.58047529]
[1765713214674,0.2415,3081.6,3081.2,0.58047529]
[1765713214875,0.2415,3081.6,3081.1,30.0]
[1765713214876,0.4804,3081.5,3081.0,0.536]
[1765713215067,0.4804,3081.5,3081.3,0.405504]
[1765713215272,0.4804,3081.5,3081.0,0.536]
[1765713215273,0.4774,3081.1,3081.0,0.536]
[1765713215686,0.9578,3081.1,3080.9,0.002]
[1765713215903,0.2415,3081.0,3080.9,0.002]
[1765713216104,0.7219,3081.0,3080.9,0.002]
[1765713216460,0.1833,3081.7,3081.0,2.452]
[1765713216461,0.4804,3081.5,3081.0,2.452]
[1765713216684,0.4804,3081.5,3081.1,0.2454]
[1765713216862,0.4804,3081.5,3081.1,0.58047529]
[1765713217064,0.4774,3081.2,3081.1,0.58047529]
[1765713217254,0.4804,3081.5,3081.2,0.98597929]
[1765713217461,0.4804,3081.5,3081.2,0.50179209]
[1765713217791,0.4774,3081.3,3081.2,31.08226738]
[1765713218275,0.1833,3081.7,3081.4,0.58047529]
[1765713218476,0.1833,3081.7,3081.5,0.405504]
[1765713218689,0.1833,3081.9,3081.5,0.405504]
[1765713219087,0.6637,3081.9,3081.5,0.405504]
[1765713219890,0.4804,3081.8,3081.5,0.405504]
[1765713220660,0.4774,3081.6,3081.5,0.405504]
[1765713221086,0.9578,3081.6,3081.3,1.11647529]
[1765713221292,0.9578,3081.6,3081.3,0.536]
[1765713221499,0.4774,3081.6,3081.3,0.536]
[1765713221793,0.4774,3081.4,3081.3,0.536]
[1765713222167,0.1833,3081.9,3081.4,0.405504]
[1765713222568,0.4804,3081.8,3081.4,0.405504]
[1765713223264,0.1833,3081.9,3081.4,0.405504]
[1765713223464,0.1833,3081.9,3081.5,30.0]
[1765713223666,0.4804,3082.2,3081.6,0.58047529]
[1765713223865,0.4804,3082.2,3081.4,0.405504]
[1765713224282,0.4804,3082.2,3081.7,0.405504]
[1765713225504,0.6607,3081.8,3081.3,0.943504]
[1765713225722,0.1833,3081.8,3081.5,0.405504]
[1765713225902,0.4804,3082.2,3081.7,0.405504]
[1765713226209,0.4774,3081.6,3081.5,0.19294833]
[1765713226387,0.6607,3081.6,3081.4,0.536]
[1765713226568,1.1411,3081.6,3081.4,0.536]
[1765713226996,0.2415,3081.5,3081.4,7.74747529]
[1765713227206,0.2415,3081.5,3081.4,7.46747529]
[1765713227378,0.1833,3081.9,3081.5,0.58047529]
[1765713227699,0.1833,3081.9,3081.6,0.405504]
[1765713227907,0.1833,3081.9,3081.4,0.405504]
[1765713228289,0.4774,3081.5,3081.3,0.002]
[1765713228471,0.4774,3081.5,3081.3,0.407504]
[1765713228806,0.4804,3081.8,3081.3,0.407504]
[1765713230791,0.1833,3081.9,3081.3,0.407504]
[1765713231019,0.4804,3082.2,3081.7,0.405504]
[1765713231317,0.4804,3082.2,3081.3,0.407504]
[1765713231506,0.4804,3082.2,3081.7,0.98597929]
[1765713231702,0.4804,3082.5,3081.9,0.405504]
[1765713232315,0.4774,3082.0,3081.8,0.941504]
[1765713232615,0.4804,3082.7,3082.2,0.405504]
[1765713233437,0.4774,3082.3,3082.0,0.536]
[1765713234294,0.9578,3082.3,3082.0,0.536]
[1765713235203,0.4774,3082.3,3082.0,0.536]
[1765713236328,0.4804,3082.6,3082.0,0.536]
[1765713236696,0.4804,3082.6,3082.2,0.58047529]
[1765713236897,0.1883,3082.8,3082.1,0.405504]
[1765713237294,0.1883,3082.8,3082.2,0.535]
[1765713238203,0.1883,3082.8,3082.5,0.58047529]
[1765713238404,0.6642,3082.8,3082.2,0.535]
[1765713238719,0.461,3082.5,3082.2,0.535]
[1765713238926,0.461,3082.3,3082.2,0.405504]
[1765713239435,0.4759,3082.7,3082.2,0.405504]
[1765713240324,0.461,3082.3,3081.4,8.822]
[1765713240624,0.4759,3082.7,3081.6,0.58047529]
[1765713240625,0.2622,3082.2,3081.6,0.58047529]
[1765713240795,0.2622,3082.2,3081.8,0.405504]
[1765713240991,0.1883,3082.8,3081.8,0.940504]
[1765713241203,0.1883,3082.8,3082.0,30.0]
[1765713241523,0.6642,3082.8,3082.2,30.0]
[1765713241903,0.461,3082.3,3081.8,0.002]
[1765713242222,0.6411,3081.9,3081.8,0.537]
[1765713242900,0.4759,3082.5,3082.0,0.58047529]
[1765713243124,0.4759,3082.5,3082.1,0.98597929]
[1765713243425,0.6642,3082.8,3082.1,0.405504]
[1765713243620,0.461,3082.2,3082.0,0.58047529]
[1765713243828,0.461,3082.2,3082.1,20.18147529]
[1765713244624,0.4759,3082.7,3082.1,0.535]
[1765713245308,0.4759,3082.7,3081.8,0.002]
[1765713245509,0.4759,3082.7,3082.1,30.0]
[1765713245710,0.4759,3082.7,3082.1,0.58047529]
[1765713245917,0.4759,3082.7,3082.2,0.58047529]
[1765713246110,0.4759,3082.7,3082.0,0.405504]
[1765713246328,0.4759,3082.7,3082.2,0.405504]
[1765713246724,0.4759,3082.7,3082.1,0.405504]
[1765713246928,0.4759,3082.7,3082.2,0.535]
[1765713247832,0.4759,3082.7,3082.1,0.405504]
[1765713247833,0.461,3082.3,3081.8,0.002]
[1765713248014,0.2634,3082.2,3081.8,0.002]
[1765713248435,0.7393,3082.2,3081.8,0.002]
[1765713248732,0.4759,3082.7,3081.8,0.002]
[1765713248925,0.4759,3082.7,3081.9,30.0]
[1765713249118,0.4259,3082.7,3081.9,30.0]
[1765713249514,0.461,3082.0,3081.8,0.002]
[1765713249721,0.4455,3081.9,3081.8,0.002]
[1765713250034,0.4455,3081.9,3081.8,0.942504]
[1765713250407,0.1883,3082.8,3081.8,0.942504]
[1765713250809,0.1883,3082.8,3081.9,0.535]
[1765713251142,0.461,3082.0,3081.9,0.535]
[1765713251815,0.9369,3082.0,3081.8,0.537]
[1765713252232,0.2139,3081.9,3081.8,0.002]
[1765713252434,0.1883,3082.8,3081.8,0.002]
[1765713252616,0.4759,3082.3,3081.8,0.002]
[1765713252940,0.6431,3081.9,3081.8,0.002]
[1765713253123,1.119,3081.9,3081.8,0.002]
[1765713255242,0.6431,3081.9,3081.8,0.002]
[1765713255422,0.4759,3082.3,3081.8,0.002]
[1765713255820,0.4759,3082.6,3081.8,0.002]
[1765713256218,0.1883,3082.8,3081.8,0.002]
[1765713256417,0.1883,3082.8,3082.2,0.405504]
[1765713256629,0.1883,3082.8,3082.2,0.535]
[1765713256830,0.001,3082.9,3082.3,0.405504]
[1765713257033,0.001,3082.9,3082.6,30.0]
[1765713257244,0.001,3082.9,3082.5,0.98597929]
[1765713257522,0.001,3082.9,3082.6,30.0]
[1765713257742,0.001,3082.9,3082.8,31.07807529]
[1765713258134,0.462,3082.9,3082.8,0.58047529]
[1765713258318,0.6441,3082.9,3082.8,0.58047529]
[1765713258722,0.462,3082.9,3082.8,0.58047529]
[1765713258947,0.6441,3082.9,3082.8,0.58047529]
[1765713259246,1.12,3082.9,3081.8,0.407504]
[1765713259446,0.22,3082.8,3082.0,0.58047529]
[1765713259743,0.22,3082.8,3081.9,30.534]
[1765713259744,0.659,3082.9,3082.2,0.405504]
[1765713259944,0.4759,3082.8,3082.3,0.534]
[1765713260143,0.4759,3082.8,3082.5,0.58047529]
[1765713261518,0.1831,3082.9,3082.3,0.534]
[1765713261942,0.1831,3082.9,3082.5,0.58047529]
[1765713262336,0.1831,3082.9,3082.4,30.0]
[1765713262567,0.1831,3082.9,3082.5,10.0]
[1765713262942,0.1831,3082.9,3082.5,0.58047529]
[1765713263840,0.1831,3082.9,3082.5,10.0]
[1765713264155,0.1831,3082.9,3082.5,0.58047529]
[1765713264322,0.1831,3082.9,3082.5,10.0]
[1765713264528,0.659,3082.9,3082.5,10.0]
[1765713264726,0.659,3082.9,3082.5,1.11447529]
[1765713264948,0.4759,3082.8,3082.1,0.572204]
[1765713265122,0.4759,3082.8,3082.4,1.11447529]
[1765713265527,0.4759,3082.8,3081.6,0.467]
[1765713265528,0.4764,3082.5,3081.6,0.467]
[1765713265737,0.4764,3082.5,3082.2,0.405504]
[1765713266026,0.9655,3082.5,3081.9,30.0]
[1765713266226,0.9655,3082.5,3082.0,30.0]
[1765713266452,0.4891,3082.4,3081.9,0.534]
[1765713266836,0.4891,3082.4,3082.0,30.0]
[1765713267041,0.4891,3082.4,3082.1,0.002]
[1765713267754,0.4727,3082.2,3082.1,0.002]
[1765713268145,0.9618,3082.2,3082.1,0.002]
[1765713270546,0.4727,3082.2,3082.1,0.002]
[1765713271735,0.9618,3082.2,3082.1,0.002]
[1765713273136,0.4727,3082.2,3082.1,0.002]
[1765713273549,0.9618,3082.2,3082.1,0.002]
[1765713274438,0.4727,3082.2,3082.1,0.002]
[1765713275038,0.001,3082.9,3082.6,0.405504]
[1765713275239,0.001,3082.9,3082.8,31.46307929]
[1765713275452,0.001,3082.9,3082.8,28.14607929]
[1765713275853,0.001,3082.9,3082.8,28.60657929]
[1765713276163,0.001,3082.9,3082.8,31.92357929]
[1765713276462,0.001,3082.9,3082.8,31.46307929]
[1765713276651,0.001,3082.9,3082.8,29.49307929]
[1765713276853,0.001,3082.9,3082.8,28.07647529]
[1765713277054,0.4737,3082.9,3082.8,0.58047529]
[1765713277261,0.001,3082.9,3082.8,0.58047529]
[1765713277961,1.1492,3082.9,3082.3,0.58047529]
[1765713278135,1.1492,3082.9,3082.1,0.55878809]
[1765713278136,0.4699,3082.4,3082.1,0.002]
[1765713278341,0.4699,3082.4,3082.2,9.004]
[1765713278650,0.4727,3082.2,3082.1,0.002]
[1765713279046,0.9618,3082.2,3082.1,0.002]
[1765713291049,0.4891,3082.6,3082.1,0.002]
[1765713291249,0.4727,3082.2,3082.1,0.002]
[1765713292848,0.9618,3082.2,3082.1,0.002]
[1765713296577,0.4727,3082.2,3082.1,0.002]
[1765713298580,0.9483,3082.2,3082.1,0.002]
[1765713298959,0.4756,3082.6,3082.1,0.4889]
[1765713299658,0.4756,3082.6,3082.1,0.002]
[1765713299864,0.4972,3082.2,3082.1,0.002]
[1765713300185,0.4756,3082.6,3082.1,0.002]
[1765713301856,0.4972,3082.2,3082.1,0.002]
[1765713302280,0.9728,3082.2,3082.1,0.002]
[1765713302600,0.001,3082.7,3082.1,0.9825]
[1765713303362,0.001,3082.7,3082.2,0.4936]
[1765713303562,0.001,3082.7,3082.1,0.002]
[1765713303766,0.001,3082.7,3082.1,0.4956]
[1765713304152,0.001,3082.7,3082.2,0.405504]
[1765713304587,0.001,3082.7,3082.3,0.4936]
[1765713304780,0.001,3082.7,3082.6,0.4869]
[1765713305152,0.001,3082.7,3082.6,0.9805]
[1765713305357,0.001,3082.7,3082.2,0.4936]
[1765713305558,0.001,3082.7,3082.2,30.0]
[1765713305756,0.001,3082.7,3082.1,0.002]
[1765713306793,0.04154886,3082.7,3082.1,0.002]
[1765713306988,0.4972,3082.2,3082.1,0.002]
[1765713307189,0.4756,3082.6,3082.1,0.002]
[1765713307494,0.001,3082.7,3082.1,0.4889]
[1765713308161,0.001,3082.7,3082.1,0.002]
[1765713308383,0.04154886,3082.7,3082.1,0.002]
[1765713308887,0.001,3082.7,3082.1,0.002]
[1765713309186,0.51714886,3082.7,3082.1,0.002]
[1765713309483,0.4766,3082.7,3082.1,0.002]
[1765713309701,0.4972,3082.2,3082.1,0.002]
[1765713310067,0.4756,3082.4,3082.1,0.002]
[1765713310594,0.4972,3082.2,3082.1,0.002]
[1765713311776,0.9728,3082.2,3082.1,0.002]
[1765713311972,0.4972,3082.2,3082.1,0.002]
[1765713312559,0.4756,3082.5,3082.1,0.002]
[1765713313263,0.4972,3082.2,3082.1,0.002]
[1765713313787,0.9728,3082.2,3082.1,0.002]
[1765713316656,1.01335544,3082.2,3082.1,0.002]
[1765713317080,1.54535544,3082.2,3082.1,0.002]
[1765713317996,1.5048,3082.2,3082.1,0.002]
[1765713319590,0.9728,3082.2,3082.1,0.002]
[1765713319995,1.5048,3082.2,3082.1,0.002]
[1765713322408,1.54535544,3082.2,3082.1,0.002]
[1765713322572,1.01335544,3082.2,3082.1,0.002]
[1765713322893,1.54535544,3082.2,3082.1,0.002]
[1765713323294,1.5048,3082.2,3082.1,0.002]
[1765713324070,1.13627108,3082.2,3082.1,0.002]
[1765713324271,1.66827108,3082.2,3082.1,0.002]
[1765713324476,0.66067108,3082.2,3082.1,0.002]
[1765713324680,1.0292,3082.2,3082.1,0.002]
[1765713326328,0.04154886,3082.7,3082.1,0.9436]
[1765713326599,0.04154886,3082.7,3082.6,0.4599]
[1765713326600,0.001,3082.7,3082.6,0.4599]
[1765713326968,0.001,3082.7,3082.6,0.9416]
[1765713327386,0.001,3082.7,3082.6,30.9416]
[1765713327603,0.001,3082.7,3082.6,32.27681439]
[1765713328374,0.001,3082.7,3082.6,17.26381439]
[1765713328574,0.001,3082.7,3082.6,16.91457929]
[1765713328782,0.001,3082.7,3082.6,31.92757929]
[1765713328986,0.001,3082.7,3082.6,16.58657929]
[1765713329876,0.001,3082.7,3082.2,0.3492351]
[1765713330071,0.001,3082.7,3082.6,0.4599]
[1765713330570,0.001,3082.7,3082.6,0.9416]
[1765713330780,0.001,3082.7,3082.6,0.4599]
[1765713331189,0.001,3082.7,3082.6,0.9408]
[1765713331503,0.001,3084.2,3083.0,30.0]
[1765713331721,0.001,3084.2,3083.9,30.6418]
[1765713331874,0.001,3084.2,3083.9,31.70317529]
[1765713332076,0.001,3084.2,3083.9,1.70317529]
[1765713332296,0.001,3084.2,3083.9,12.64217529]
[1765713332900,0.001,3084.2,3083.9,32.10867929]
[1765713333407,0.001,3084.2,3083.9,32.48691439]
[1765713334339,0.001,3084.2,3083.9,33.01791439]
[1765713336707,0.001,3084.2,3083.9,32.63967929]
[1765713337832,0.001,3084.2,3083.9,32.10867929]
[1765713338015,0.001,3084.2,3083.9,13.80367929]
[1765713338214,0.001,3084.2,3083.9,8.0728]
[1765713338427,0.001,3084.2,3083.9,8.6038]
[1765713338726,0.001,3084.2,3083.9,9.66517529]
[1765713338921,0.001,3084.2,3083.9,10.07067929]
[1765713339441,0.001,3084.2,3083.9,32.63967929]
[1765713340934,0.001,3085.2,3085.0,0.405504]
[1765713341133,0.001,3086.5,3085.4,0.405504]
[1765713341307,0.001,3086.5,3085.8,0.58047529]
[1765713341504,0.4954,3086.5,3085.8,10.0]
[1765713341705,0.4954,3086.5,3085.4,0.531]
[1765713342707,0.001,3086.5,3085.6,30.0]